bitfinex-derivatives/quotes_ETHF0:USTF0_20250620
["timestamp","ask_amount","ask_price","bid_price","bid_amount"]
[1750440525734,2.1722,2416.3,2416.2,0.0827746]
[1750440526031,2.1722,2416.3,2415.4,3.2078]
[1750440526223,3.2078,2416.1,2415.5,0.08279859]
[1750440526531,3.2078,2415.8,2415.5,0.08279859]
[1750440527030,5.3263,2416.6,2415.7,3.2078]
[1750440527730,5.3263,2416.6,2416.0,3.2078]
[1750440528030,3.2078,2416.6,2415.7,3.2078]
[1750440528533,11.38077783,2416.4,2415.7,3.2078]
[1750440528732,3.2078,2416.3,2415.6,2.081]
[1750440529038,5.3263,2416.3,2415.6,2.081]
[1750440530120,3.2078,2416.0,2415.5,0.08279859]
[1750440530521,3.2078,2416.0,2415.5,2.22349859]
[1750440530721,2.0152,2416.8,2415.8,3.2078]
[1750440530931,0.06933781,2416.6,2416.3,3.2078]
[1750440531135,0.06933781,2416.6,2416.4,2.1407]
[1750440531433,0.06933781,2416.6,2416.3,3.2078]
[1750440531633,0.06933781,2416.6,2416.0,3.2078]
[1750440531933,0.06933781,2416.6,2416.3,3.2078]
[1750440532135,0.06933781,2416.6,2416.4,2.1924]
[1750440533226,0.06933781,2416.6,2416.0,3.2078]
[1750440534126,2.06823781,2416.6,2416.0,3.2078]
[1750440534327,0.06933781,2416.6,2415.9,3.2078]
[1750440534632,3.2078,2415.9,2413.9,3.2078]
[1750440534830,3.2078,2414.8,2413.9,3.2078]
[1750440535028,3.2078,2414.8,2414.0,2.1924]
[1750440535628,3.2078,2414.5,2414.0,2.1924]
[1750440537131,3.2078,2414.2,2414.0,2.1924]
[1750440537334,3.2078,2414.2,2413.6,3.2078]
[1750440537530,11.38077783,2413.7,2412.4,3.2078]
[1750440537735,3.2078,2413.4,2412.7,2.116]
[1750440538134,3.2078,2413.7,2413.1,11.38077783]
[1750440538435,3.2078,2413.7,2413.2,2.0278]
[1750440538829,3.2078,2413.4,2412.6,3.2078]
[1750440539132,3.2078,2413.4,2412.7,2.0278]
[1750440539335,14.58857783,2413.0,2412.3,3.2078]
[1750440539544,14.58857783,2412.7,2412.0,3.2078]
[1750440539834,14.58857783,2412.7,2411.7,2.0278]
[1750440539835,3.2078,2412.1,2411.5,3.2078]
[1750440540028,14.58857783,2412.4,2411.7,2.0278]
[1750440540231,14.58857783,2412.4,2411.5,3.2078]
[1750440540232,14.58857783,2412.1,2411.5,3.2078]
[1750440540532,2.1641,2412.0,2411.5,3.2078]
[1750440540735,3.2078,2412.7,2411.9,11.38077783]
[1750440540940,3.2078,2413.4,2412.5,14.58857783]
[1750440541236,3.2078,2413.4,2412.8,3.2078]
[1750440541539,3.2078,2413.1,2412.1,3.2078]
[1750440541738,11.38077783,2412.7,2412.1,3.2078]
[1750440541933,3.2078,2412.8,2412.1,3.2078]
[1750440542127,3.2078,2412.8,2412.2,2.1608]
[1750440542330,3.2078,2413.2,2412.4,3.2078]
[1750440542535,5.2083,2413.5,2412.4,3.2078]
[1750440542731,3.2078,2413.5,2412.7,3.2078]
[1750440542933,3.2078,2413.5,2412.8,2.1608]
[1750440543143,3.2078,2413.2,2412.3,5.3871]
[1750440543438,2.0005,2413.4,2412.6,3.2078]
[1750440543738,3.2078,2415.2,2413.3,3.2078]
[1750440543936,3.2078,2415.2,2412.7,49.787]
[1750440543937,0.0828123,2415.1,2414.2,3.2078]
[1750440544142,11.38077783,2415.0,2414.3,2.1608]
[1750440544325,11.38077783,2415.0,2414.3,3.2078]
[1750440544326,3.29061916,2414.9,2414.3,3.2078]
[1750440544938,0.08282259,2414.8,2414.3,3.2078]
[1750440545441,0.08282259,2414.8,2414.4,2.0297]
[1750440545832,0.08282259,2414.8,2414.3,3.2078]
[1750440546337,0.08282259,2414.8,2414.4,2.0297]
[1750440547834,0.06933781,2415.0,2414.7,11.38077783]
[1750440548142,3.2078,2416.3,2414.9,3.2078]
[1750440548336,3.2078,2416.3,2415.3,3.2078]
[1750440548639,3.2078,2415.7,2415.0,3.2078]
[1750440548840,11.38077783,2415.9,2415.2,2.0349]
[1750440549041,2.0117,2415.8,2415.0,3.2078]
[1750440549242,3.2078,2415.7,2414.8,2.0349]
[1750440549532,3.2078,2415.7,2414.6,5.3547]
[1750440549533,3.2078,2415.4,2414.6,3.2078]
[1750440549738,2.0117,2415.3,2414.6,3.2078]
[1750440549937,2.0117,2415.3,2414.3,2.0349]
[1750440550135,0.06933781,2415.0,2414.3,2.0349]
[1750440550841,0.06933781,2415.0,2414.5,14.58857783]
[1750440551142,0.06933781,2415.0,2414.1,3.2078]
[1750440551329,0.06933781,2415.0,2413.5,54.8908]
[1750440551330,3.2078,2414.5,2413.5,54.8908]
[1750440551531,3.2078,2414.2,2413.7,13.40537783]
[1750440551735,0.06933781,2415.0,2414.1,3.2078]
[1750440552037,0.06933781,2415.0,2414.6,3.2078]
[1750440552239,0.06933781,2415.0,2414.7,2.0246]
[1750440552632,0.06933781,2415.0,2414.9,3.2078]
[1750440552837,0.06933781,2415.0,2414.7,2.0246]
[1750440553039,0.06933781,2415.0,2414.8,2.0246]
[1750440553338,0.06933781,2415.0,2414.9,3.2078]
[1750440553537,3.2078,2415.6,2414.9,8.2078]
[1750440553731,3.2078,2415.6,2415.2,3.2078]
[1750440553935,3.2078,2415.6,2414.0,2.0441]
[1750440553936,3.2078,2415.6,2414.9,3.2078]
[1750440554138,3.2078,2415.0,2414.2,3.2078]
[1750440554438,3.2078,2415.0,2412.6,49.619]
[1750440554439,3.27713781,2415.0,2414.5,3.2078]
[1750440554635,3.27713781,2415.0,2414.6,2.1908]
[1750440555243,3.27713781,2415.0,2413.9,51.679]
[1750440555244,3.2078,2414.7,2413.9,54.8868]
[1750440555444,3.2078,2414.7,2414.0,2.1908]
[1750440555835,3.2078,2414.7,2414.4,11.38077783]
[1750440556042,3.2078,2414.7,2414.5,2.1908]
[1750440556745,3.2078,2414.7,2414.0,2.1787]
[1750440556938,3.2078,2414.7,2414.1,2.113]
[1750440557134,3.2078,2414.4,2414.1,2.113]
[1750440557340,2.1357,2414.9,2414.1,2.113]
[1750440557341,3.2078,2414.7,2414.1,2.113]
[1750440557638,3.2078,2414.4,2414.1,2.113]
[1750440560041,3.2078,2414.4,2414.0,3.2078]
[1750440560245,3.2078,2414.1,2413.3,3.2078]
[1750440560447,3.2078,2413.8,2412.7,13.42487783]
[1750440560745,3.2078,2413.9,2413.4,11.38077783]
[1750440561046,3.2078,2413.9,2413.5,2.0963]
[1750440563248,3.2078,2413.9,2413.6,11.38077783]
[1750440563450,3.2078,2413.9,2413.7,2.1047]
[1750440564043,3.2078,2413.9,2413.3,2.1047]
[1750440564347,3.2078,2413.9,2413.3,13.48547783]
[1750440564734,3.2078,2413.9,2413.3,2.1047]
[1750440565341,3.2078,2413.9,2413.3,13.48547783]
[1750440565538,3.2078,2413.9,2413.6,11.38077783]
[1750440565845,0.06933781,2414.7,2413.7,53.7219]
[1750440566049,3.2078,2414.6,2414.1,11.38077783]
[1750440566245,0.06933781,2414.7,2414.3,3.2078]
[1750440566546,0.06933781,2414.7,2414.4,2.0339]
[1750440567742,3.2078,2415.4,2414.6,3.2078]
[1750440568046,5.3102,2415.7,2414.9,3.2078]
[1750440568239,5.3102,2415.7,2415.0,2.0339]
[1750440568752,5.3102,2415.7,2415.2,3.2078]
[1750440569447,5.3102,2415.7,2415.0,2.0339]
[1750440569448,3.2078,2415.3,2414.8,51.688]
[1750440569649,3.2078,2415.6,2414.9,3.2078]
[1750440570045,3.2078,2415.6,2414.9,14.58857783]
[1750440570249,2.1024,2415.7,2414.9,14.58857783]
[1750440570250,3.2078,2416.1,2415.5,14.58857783]
[1750440570557,3.2078,2416.9,2415.9,11.38077783]
[1750440570742,3.2078,2416.9,2416.3,3.2078]
[1750440570945,2.30069628,2417.7,2416.6,3.2078]
[1750440570946,3.2078,2417.5,2416.6,3.2078]
[1750440571144,3.2078,2417.5,2416.9,3.2078]
[1750440571346,3.2078,2417.8,2417.3,11.38077783]
[1750440571542,3.2078,2418.1,2417.2,3.2078]
[1750440571751,2.2601,2418.0,2417.5,3.2078]
[1750440572054,3.2078,2418.5,2417.6,3.2078]
[1750440572248,3.2078,2418.5,2417.9,3.2078]
[1750440572449,2.2601,2418.4,2417.9,3.2078]
[1750440572746,3.2078,2418.5,2417.9,14.58857783]
[1750440572944,3.2078,2418.8,2418.2,14.58857783]
[1750440573151,2.2601,2419.0,2418.5,3.2078]
[1750440574054,3.2078,2418.6,2417.7,3.2078]
[1750440574252,3.2078,2418.3,2417.5,3.2078]
[1750440574556,13.68147411,2419.1,2417.0,51.666]
[1750440574557,3.2078,2417.6,2417.0,3.2078]
[1750440574759,3.2078,2417.9,2417.0,3.2078]
[1750440574950,2.063,2417.8,2417.0,3.2078]
[1750440575558,3.2078,2417.6,2417.0,3.2078]
[1750440575760,2.063,2417.5,2417.0,3.2078]
[1750440576257,3.2078,2417.6,2417.0,3.2078]
[1750440576452,3.2078,2417.6,2417.1,2.1288]
[1750440577058,3.2078,2418.0,2417.5,11.38077783]
[1750440577255,2.063,2418.6,2417.9,3.2078]
[1750440577463,2.063,2418.6,2418.2,3.2078]
[1750440577653,3.2078,2418.8,2418.3,3.2078]
[1750440577855,5.4068,2419.1,2418.3,3.2078]
[1750440578054,5.4068,2419.1,2418.4,2.0857]
[1750440578958,5.4068,2419.1,2418.3,3.2078]
[1750440579762,5.4068,2419.1,2418.4,2.0857]
[1750440580560,3.2078,2419.1,2418.4,2.0857]
[1750440581164,2.0864,2419.0,2418.4,2.0857]
[1750440581963,3.2078,2419.1,2418.6,3.2078]
[1750440582162,2.0961,2419.7,2418.7,13.56007783]
[1750440582163,2.0864,2419.5,2418.7,13.56007783]
[1750440582362,2.0864,2419.5,2418.9,3.2078]
[1750440582762,3.2078,2419.7,2418.7,2.1793]
[1750440583068,2.0864,2419.4,2419.0,3.2078]
[1750440583462,2.0864,2419.4,2418.7,2.1793]
[1750440583662,3.2078,2419.7,2419.0,3.2078]
[1750440583867,3.2078,2419.7,2419.1,2.2434]
[1750440584769,2.0609,2420.2,2419.6,3.2078]
[1750440585375,2.0609,2420.2,2419.3,3.2078]
[1750440585669,5.4024,2420.4,2419.6,14.58857783]
[1750440585670,3.2078,2420.4,2419.6,14.58857783]
[1750440585970,3.2078,2420.4,2419.7,2.2434]
[1750440587164,3.2078,2420.4,2419.8,11.38077783]
[1750440587665,3.2078,2420.4,2419.7,2.2434]
[1750440587865,2.1608,2420.3,2419.7,2.2434]
[1750440588571,3.2078,2420.4,2419.7,2.2434]
[1750440588871,3.2078,2420.4,2419.7,13.62417783]
[1750440589672,0.06933781,2420.2,2419.7,13.62417783]
[1750440589873,0.06933781,2420.2,2419.8,2.2283]
[1750440590467,0.06933781,2420.2,2420.0,14.58857783]
[1750440590667,0.06933781,2420.2,2420.1,2.2283]
[1750440591270,0.06933781,2420.2,2420.1,7.2283]
[1750440591477,5.3725,2421.8,2420.1,7.2283]
[1750440591768,0.06933781,2421.5,2421.1,3.2078]
[1750440591973,0.06933781,2421.5,2421.2,2.2283]
[1750440592169,3.2078,2421.8,2421.2,2.2283]
[1750440592373,3.2078,2422.4,2421.4,14.58857783]
[1750440592574,0.06933781,2422.0,2421.5,2.2283]
[1750440592879,0.06933781,2421.7,2421.5,2.2283]
[1750440593077,3.2078,2422.1,2421.4,3.2078]
[1750440593078,0.06933781,2421.6,2421.4,3.2078]
[1750440593380,0.06933781,2421.5,2420.9,2.1462]
[1750440593674,0.06933781,2421.3,2420.9,2.1462]
[1750440593867,0.06933781,2421.1,2420.9,2.1462]
[1750440594177,0.06933781,2421.0,2420.8,51.588]
[1750440594373,0.06933781,2420.9,2420.8,51.588]
[1750440594775,0.06933781,2420.9,2420.2,5.354]
[1750440595084,0.06933781,2420.8,2420.4,11.38077783]
[1750440595268,0.06933781,2420.8,2420.5,2.1462]
[1750440595473,0.06933781,2420.5,2420.2,3.2078]
[1750440596477,0.06933781,2420.4,2420.1,3.2078]
[1750440596675,0.06933781,2420.3,2420.1,3.2078]
[1750440596876,0.06933781,2420.2,2420.1,3.2078]
[1750440597474,0.13867562,2420.2,2419.9,51.572]
[1750440597677,0.06933781,2420.2,2420.0,13.49477783]
[1750440597877,0.06933781,2420.1,2419.9,51.572]
[1750440598175,0.06933781,2420.0,2419.8,3.2078]
[1750440598478,0.82676,2418.9,2417.9,3.2078]
[1750440598673,11.38077783,2419.9,2417.7,11.38077783]
[1750440598674,3.2078,2418.7,2417.7,11.38077783]
[1750440598869,3.2078,2418.7,2418.3,11.38077783]
[1750440599078,3.2078,2418.7,2418.4,2.2263]
[1750440599280,3.2078,2418.7,2417.8,11.38077783]
[1750440599474,0.06933781,2418.2,2417.8,2.2263]
[1750440599685,3.27713781,2418.1,2417.8,2.2263]
[1750440599979,0.06933781,2417.9,2417.1,11.38077783]
[1750440600171,0.06933781,2417.8,2417.5,2.2263]
[1750440600370,0.06933781,2417.3,2416.3,3.2078]
[1750440600576,0.06933781,2415.9,2415.3,0.42061595]
[1750440600875,3.2078,2416.3,2414.2,3.2078]
[1750440600876,3.2078,2415.4,2414.2,3.2078]
[1750440601073,51.57,2416.1,2413.6,11.78537659]
[1750440601074,3.2078,2414.7,2413.6,11.38077783]
[1750440601273,0.06933781,2414.6,2414.0,3.2078]
[1750440601575,0.06933781,2414.4,2414.1,2.2263]
[1750440601874,3.2078,2414.5,2414.1,2.2263]
[1750440602077,0.06933781,2414.4,2414.1,2.2263]
[1750440602275,0.06933781,2414.2,2414.1,2.2263]
[1750440602471,8.27713781,2414.2,2413.3,2.2254]
[1750440602674,0.06933781,2413.6,2413.3,2.2254]
[1750440602875,3.2078,2413.8,2413.3,2.2254]
[1750440602876,0.06933781,2413.5,2413.3,2.2254]
[1750440603083,0.06933781,2413.4,2412.5,11.38077783]
[1750440603286,0.06933781,2413.1,2412.5,2.2254]
[1750440603482,0.06933781,2412.7,2411.9,3.2078]
[1750440603684,0.06933781,2412.7,2412.3,2.2254]
[1750440603884,0.06933781,2412.6,2412.3,2.2254]
[1750440604084,3.27713781,2412.4,2411.5,3.2078]
[1750440604384,0.06933781,2412.1,2411.7,2.2254]
[1750440604587,0.06933781,2411.9,2411.7,2.2254]
[1750440604789,3.27713781,2411.8,2411.3,3.2078]
[1750440604991,0.06933781,2411.7,2411.4,2.0848]
[1750440605487,0.06933781,2411.6,2411.4,5.2926]
[1750440605884,3.2078,2411.8,2411.4,2.0848]
[1750440606182,3.27713781,2411.5,2410.8,53.6515]
[1750440606379,0.06933781,2411.1,2410.6,3.2078]
[1750440606586,3.27713781,2411.5,2410.9,11.38077783]
[1750440606883,0.06933781,2411.3,2410.7,2.0848]
[1750440607079,0.06933781,2411.0,2410.7,2.0848]
[1750440607283,3.2078,2411.2,2410.1,11.38077783]
[1750440607284,0.06933781,2410.8,2410.1,11.38077783]
[1750440607580,0.06933781,2411.1,2410.7,11.38077783]
[1750440607782,3.2078,2412.0,2411.0,14.58857783]
[1750440607979,3.2078,2412.3,2411.8,11.38077783]
[1750440608179,0.06933781,2412.3,2411.9,2.0915]
[1750440608377,3.27713781,2412.2,2411.9,2.0915]
[1750440608585,0.06933781,2412.0,2411.1,4.3025]
[1750440608784,0.06933781,2411.3,2411.2,2.0915]
[1750440609088,3.2078,2411.6,2411.2,2.0915]
[1750440609089,3.2078,2412.0,2411.2,5.2993]
[1750440609288,2.2601,2412.1,2411.2,5.2993]
[1750440609289,3.2078,2411.6,2411.2,5.2993]
[1750440609486,3.2078,2411.6,2411.2,16.68007783]
[1750440609788,3.2078,2411.4,2411.0,63.06077783]
[1750440609986,3.2078,2411.7,2411.1,2.0915]
[1750440610183,3.27713781,2411.7,2411.5,11.38077783]
[1750440610377,0.06933781,2411.4,2411.1,2.0915]
[1750440610582,0.06933781,2411.5,2411.1,13.47227783]
[1750440610985,3.27713781,2411.2,2410.5,11.38077783]
[1750440611179,0.06933781,2411.0,2410.4,3.2078]
[1750440611482,0.06933781,2410.9,2410.4,3.2078]
[1750440611681,0.06933781,2411.1,2410.7,11.38077783]
[1750440611882,3.2078,2411.2,2410.7,11.38077783]
[1750440611883,3.2078,2411.2,2410.9,11.38077783]
[1750440612078,3.2078,2413.5,2411.8,3.2078]
[1750440612280,3.2078,2413.5,2413.0,11.38077783]
[1750440612479,3.2078,2413.5,2412.9,3.2078]
[1750440612480,3.2078,2413.5,2413.1,2.2303]
[1750440612680,2.85652186,2413.0,2412.9,3.2078]
[1750440612984,2.85652186,2413.0,2412.6,11.38077783]
[1750440613184,2.85652186,2413.0,2412.6,13.61107783]
[1750440613386,2.85652186,2412.9,2412.6,13.61107783]
[1750440613579,2.85652186,2413.0,2412.6,13.61107783]
[1750440613780,5.4517,2413.4,2412.9,3.2078]
[1750440613982,2.85652186,2413.4,2413.2,14.58857783]
[1750440614190,2.168,2414.0,2413.3,2.1529]
[1750440614487,2.85652186,2413.5,2413.3,2.1529]
[1750440614785,2.85652186,2413.8,2413.3,2.1529]
[1750440614977,5.3758,2414.0,2413.3,2.1529]
[1750440614978,2.85652186,2414.0,2413.5,14.58857783]
[1750440615185,3.2078,2414.9,2413.9,14.58857783]
[1750440615384,2.85652186,2414.6,2414.3,11.38077783]
[1750440615582,2.85652186,2414.7,2414.5,3.2078]
[1750440616181,2.85652186,2414.7,2413.6,51.707]
[1750440616182,2.85652186,2414.7,2414.6,3.2078]
[1750440616387,2.85652186,2414.5,2414.0,11.38077783]
[1750440616685,2.85652186,2414.6,2414.3,3.2078]
[1750440616987,3.2078,2415.3,2414.4,50.2719]
[1750440617180,51.707,2416.8,2415.0,14.58857783]
[1750440617181,3.2078,2416.0,2415.0,14.58857783]
[1750440617486,2.85652186,2414.5,2414.4,3.2078]
[1750440617686,3.2078,2415.7,2414.4,14.58857783]
[1750440617886,4.14784,2416.7,2415.5,11.38077783]
[1750440617887,3.2078,2416.0,2415.5,11.38077783]
[1750440618085,2.85652186,2415.8,2415.6,2.0596]
[1750440618283,2.85652186,2415.9,2415.6,2.0596]
[1750440618584,3.2078,2416.0,2415.6,2.0596]
[1750440618585,6.06432186,2416.0,2415.6,2.0596]
[1750440618887,2.1784,2416.6,2415.9,3.2078]
[1750440619184,3.2078,2416.9,2416.2,3.2078]
[1750440619386,2.85652186,2416.6,2416.2,14.58857783]
[1750440619586,5.3862,2416.9,2415.9,3.2078]
[1750440619785,3.2078,2417.3,2416.5,3.2078]
[1750440619979,2.1784,2417.2,2416.5,3.2078]
[1750440620184,2.85652186,2416.6,2416.1,11.38077783]
[1750440620387,2.85652186,2416.5,2416.2,2.071]
[1750440620690,2.85652186,2416.2,2416.0,3.2078]
[1750440620880,2.85652186,2416.2,2415.6,3.2078]
[1750440620881,2.85652186,2416.1,2415.6,3.2078]
[1750440621087,2.85652186,2415.7,2415.2,3.2078]
[1750440621286,2.85652186,2414.9,2414.7,3.2078]
[1750440621491,2.0653,2415.6,2414.8,11.38077783]
[1750440621492,2.85652186,2415.1,2414.8,11.38077783]
[1750440621787,2.85652186,2414.8,2414.7,3.2078]
[1750440621979,3.2078,2415.5,2414.7,3.2078]
[1750440622186,3.2078,2416.0,2415.3,3.2078]
[1750440622381,2.85652186,2416.1,2415.7,11.38077783]
[1750440622688,2.85652186,2416.1,2415.7,13.45177783]
[1750440622884,2.85652186,2416.1,2415.9,3.2078]
[1750440623087,2.85652186,2415.9,2415.7,3.2078]
[1750440623385,2.85652186,2415.8,2415.6,3.2078]
[1750440623584,2.85652186,2415.5,2415.4,2.1745]
[1750440624188,2.85652186,2415.5,2415.4,5.3823]
[1750440624391,2.85652186,2415.5,2415.4,3.2078]
[1750440625185,3.2078,2416.2,2415.4,3.2078]
[1750440625381,2.0476,2416.1,2415.4,3.2078]
[1750440625588,2.85652186,2415.5,2415.4,3.2078]
[1750440626092,2.0476,2416.1,2415.4,3.2078]
[1750440626393,2.85652186,2415.5,2415.4,3.2078]
[1750440627392,2.85652186,2415.5,2415.1,3.2078]
[1750440627592,2.85652186,2415.0,2414.7,3.2078]
[1750440627788,3.2078,2415.2,2414.3,3.2078]
[1750440627789,2.85652186,2414.8,2414.3,3.2078]
[1750440628091,3.2078,2415.2,2414.6,3.2078]
[1750440628391,2.2431,2415.1,2414.6,3.2078]
[1750440628586,3.2078,2415.5,2415.0,3.2078]
[1750440628787,3.2078,2415.9,2415.3,3.2078]
[1750440628998,2.85652186,2415.2,2415.0,3.2078]
[1750440629190,2.85652186,2415.1,2415.0,3.2078]
[1750440629495,2.85652186,2415.3,2415.0,3.2078]
[1750440629690,3.2078,2415.9,2415.1,2.1117]
[1750440629992,2.85652186,2415.6,2415.3,3.2078]
[1750440630290,5.3503,2416.3,2415.5,11.38077783]
[1750440630493,3.2078,2416.3,2415.7,3.2078]
[1750440630693,3.2078,2416.8,2416.2,3.2078]
[1750440630895,2.85652186,2416.4,2416.2,3.2078]
[1750440631201,2.85652186,2416.3,2416.2,3.2078]
[1750440631392,2.85652186,2416.4,2416.2,3.2078]
[1750440631790,3.2078,2416.8,2416.2,3.2078]
[1750440631993,2.85652186,2416.3,2416.2,3.2078]
[1750440632194,2.85652186,2416.4,2416.2,3.2078]
[1750440632595,2.85652186,2416.3,2416.2,3.2078]
[1750440632900,3.2078,2416.8,2416.2,3.2078]
[1750440633091,2.85652186,2416.5,2416.2,3.2078]
[1750440633291,2.85652186,2416.6,2416.3,2.1639]
[1750440633497,2.85652186,2416.6,2416.4,3.2078]
[1750440633697,2.85652186,2416.4,2415.4,57.0556]
[1750440633891,5.3879,2416.5,2415.8,3.2078]
[1750440634094,2.85652186,2415.8,2415.5,2.1639]
[1750440634293,2.85652186,2415.9,2415.5,2.1639]
[1750440634500,2.85652186,2415.9,2415.7,3.2078]
[1750440634995,2.85652186,2415.8,2415.6,3.2078]
[1750440635199,2.85652186,2416.0,2415.6,14.58857783]
[1750440635397,3.2078,2416.7,2415.9,3.2078]
[1750440635594,2.85652186,2416.0,2415.9,3.2078]
[1750440635793,2.1203,2416.6,2415.9,3.2078]
[1750440636092,2.85652186,2416.2,2415.9,3.2078]
[1750440636291,2.85652186,2416.4,2416.0,13.61437783]
[1750440636502,2.85652186,2416.5,2416.3,3.2078]
[1750440636889,5.2623,2417.7,2416.3,19.58857783]
[1750440637098,2.85652186,2416.9,2416.6,3.2078]
[1750440637398,2.1203,2417.6,2416.7,11.38077783]
[1750440637399,0.06933781,2417.1,2416.7,11.38077783]
[1750440637599,0.06933781,2417.1,2417.0,3.2078]
[1750440638099,2.92585967,2417.1,2417.0,3.2078]
[1750440638401,2.1203,2417.6,2417.0,3.2078]
[1750440638593,2.85652186,2417.2,2417.0,3.2078]
[1750440638998,3.2078,2417.7,2417.0,14.58857783]
[1750440639200,2.85652186,2417.2,2417.0,3.2078]
[1750440639395,3.2078,2417.7,2417.0,14.58857783]
[1750440639707,3.2078,2418.0,2417.4,3.2078]
[1750440639999,2.2672,2417.8,2417.4,3.2078]
[1750440640304,2.85652186,2417.5,2417.4,3.2078]
[1750440641099,2.85652186,2417.5,2417.1,2.202]
[1750440641100,2.85652186,2417.5,2417.1,3.2078]
[1750440641398,2.85652186,2417.2,2416.5,57.0648]
[1750440641599,17.44509969,2416.6,2415.7,3.2078]
[1750440641801,2.85652186,2416.3,2416.1,3.2078]
[1750440642099,3.2078,2416.9,2416.2,3.2078]
[1750440642300,3.2078,2417.2,2416.7,3.2078]
[1750440642499,2.85652186,2417.0,2416.7,14.58857783]
[1750440642694,2.85652186,2417.0,2416.7,3.2078]
[1750440642900,0.06933781,2417.4,2416.7,14.58857783]
[1750440643099,2.85652186,2417.2,2416.8,5.4856]
[1750440643304,2.85652186,2417.2,2417.1,3.2078]
[1750440643505,1.41559709,2417.2,2417.1,3.2078]
[1750440643800,2.30069628,2418.0,2417.1,8.2078]
[1750440644006,2.85652186,2417.6,2417.4,3.2078]
[1750440644703,5.50849628,2418.2,2417.4,3.2078]
[1750440644900,2.85652186,2417.9,2417.7,3.2078]
[1750440645200,2.85652186,2418.1,2417.8,3.2078]
[1750440645411,2.2202,2418.4,2417.8,3.2078]
[1750440645602,2.85652186,2417.9,2417.8,3.2078]
[1750440645806,2.85652186,2418.1,2417.8,3.2078]
[1750440646007,2.85652186,2417.9,2417.8,3.2078]
[1750440646306,4.27361166,2417.9,2417.4,3.2078]
[1750440646506,2.85652186,2417.6,2417.4,3.2078]
[1750440646701,2.85652186,2417.5,2417.4,3.2078]
[1750440646897,13.24599593,2418.4,2417.4,3.2078]
[1750440647098,3.2078,2418.1,2417.5,3.2078]
[1750440647294,3.2078,2417.7,2416.4,3.2078]
[1750440647495,1.41707718,2417.6,2417.0,3.2078]
[1750440647698,1.41707718,2417.5,2417.0,14.58857783]
[1750440647904,1.41707718,2417.4,2417.1,2.1412]
[1750440648204,1.41707718,2417.3,2416.5,2.1412]
[1750440648401,1.41707718,2417.2,2416.9,3.2078]
[1750440648596,1.41707718,2417.1,2416.6,3.2078]
[1750440648899,3.2078,2417.2,2416.6,3.2078]
[1750440648900,15.87005497,2417.0,2416.6,3.2078]
[1750440649099,3.2078,2416.8,2415.9,5.349]
[1750440649304,1.41707718,2416.7,2416.2,3.2078]
[1750440649496,6.27999996,2417.2,2416.6,3.2078]
[1750440649804,1.41529387,2417.1,2416.5,3.2078]
[1750440649997,1.41529387,2417.0,2416.5,3.2078]
[1750440650198,14.58857783,2417.2,2416.2,3.2078]
[1750440650199,3.48229387,2416.9,2416.2,3.2078]
[1750440650397,4.62309387,2416.8,2416.2,3.2078]
[1750440650604,3.66799387,2416.7,2416.2,3.2078]
[1750440650801,1.41529387,2416.6,2416.2,3.2078]
[1750440651002,3.66799387,2416.5,2416.2,3.2078]
[1750440651197,1.41529387,2416.4,2416.2,3.2078]
[1750440651400,1.41529387,2416.3,2415.6,5.4662]
[1750440651599,1.41529387,2416.2,2415.6,5.4662]
[1750440651799,1.41529387,2416.1,2415.6,5.54899516]
[1750440651996,2.2527,2416.3,2415.6,2.34119516]
[1750440651997,1.41618827,2416.0,2415.6,2.34119516]
[1750440652199,1.41618827,2415.9,2415.8,3.2078]
[1750440652403,3.2078,2416.7,2415.8,3.2078]
[1750440652603,3.07219996,2416.8,2415.8,3.2078]
[1750440652604,5.4605,2416.4,2415.8,3.2078]
[1750440652910,1.41658905,2416.3,2415.8,3.2078]
[1750440653101,11.38077783,2415.9,2415.8,3.2078]
[1750440653304,16.00516688,2415.9,2415.6,0.08279516]
[1750440653504,3.66928905,2415.8,2415.6,0.08279516]
[1750440653709,16.00516688,2415.7,2414.9,2.2584]
[1750440653901,1.41658905,2415.6,2415.0,0.08281573]
[1750440654102,16.69497783,2415.7,2415.1,3.2078]
[1750440654103,3.52298905,2415.5,2415.1,3.2078]
[1750440654300,3.2078,2415.4,2415.2,0.08280887]
[1750440654502,2.1064,2415.3,2414.8,3.2078]
[1750440654705,14.58857783,2415.1,2414.9,0.08281916]
[1750440655001,14.58857783,2415.1,2413.8,11.38077783]
[1750440655002,2.1064,2415.0,2414.4,3.2078]
[1750440655207,2.1064,2415.0,2414.5,0.08283288]
[1750440655604,11.38077783,2414.7,2413.5,3.2078]
[1750440655807,15.41690783,2414.3,2413.6,0.08286377]
[1750440655999,14.58857783,2414.0,2413.6,0.08286377]
[1750440656202,13.48717783,2413.9,2413.6,0.08286377]
[1750440656611,18.48717783,2413.9,2413.6,0.08286377]
[1750440656806,2.1064,2413.9,2413.6,0.08286377]
[1750440657504,21.69497783,2413.9,2413.6,0.08286377]
[1750440657810,5.2,2413.8,2413.7,0.08286033]
[1750440658206,12.3657,2413.8,2413.7,0.08286033]
[1750440658406,2.1657,2413.8,2413.7,0.08286033]
[1750440658711,7.1657,2413.8,2412.9,3.2078]
[1750440658912,3.2078,2413.6,2412.9,3.2078]
[1750440659112,2.1657,2413.5,2412.9,3.2078]
[1750440660011,3.2078,2413.6,2412.9,3.2078]
[1750440660207,3.2078,2413.9,2413.0,2.2435]
[1750440660402,3.2078,2413.2,2412.6,3.2078]
[1750440660607,3.2078,2412.8,2411.9,5.4513]
[1750440660807,3.2078,2412.8,2408.9,11.38077783]
[1750440660808,3.2078,2412.4,2411.7,2.2435]
[1750440661007,3.2078,2411.8,2411.3,3.2078]
[1750440661209,3.2078,2411.8,2411.4,2.2435]
[1750440661411,3.2078,2411.8,2411.1,3.2078]
[1750440661606,53.8286,2413.0,2410.3,51.676]
[1750440661607,14.58857783,2412.7,2411.6,3.2078]
[1750440661803,3.2078,2412.4,2411.6,3.2078]
[1750440662010,3.2078,2411.7,2411.0,3.2078]